bitfinex/quotes_SOLUSD_20230703
["timestamp","ask_amount","ask_price","bid_price","bid_amount"]
[1688419128228,57.063,19.084,19.066,21.185]
[1688419128521,22.171,19.079,19.066,21.185]
[1688419129225,22.17,19.08,19.066,125.401]
[1688419131309,22.169,19.081,19.066,125.401]
[1688419131510,22.169,19.081,19.071,79.281]
[1688419131929,22.168,19.082,19.071,79.281]
[1688419132535,55.0,19.081,19.071,79.281]
[1688419132818,57.063,19.084,19.071,79.281]
[1688419133021,22.164,19.085,19.075,79.261]
[1688419133221,22.164,19.085,19.078,22.171]
[1688419134705,22.164,19.085,19.062,623.4]
[1688419134706,22.164,19.085,19.072,57.098]
[1688419135133,55.0,19.084,19.072,57.098]
[1688419135429,22.169,19.081,19.073,22.176]
[1688419135612,22.171,19.079,19.073,22.176]
[1688419136019,55.0,19.084,19.073,22.176]
[1688419136325,57.063,19.084,19.073,22.176]
[1688419136628,55.0,19.083,19.073,22.176]
[1688419137135,22.171,19.079,19.073,22.176]
[1688419137915,22.171,19.079,19.065,57.117]
[1688419138120,55.0,19.078,19.069,22.182]
[1688419138338,22.175,19.076,19.069,22.182]
[1688419138720,55.0,19.075,19.064,57.122]
[1688419139040,22.179,19.073,19.067,22.184]
[1688419139328,22.177,19.074,19.067,22.184]
[1688419139919,22.175,19.075,19.067,22.184]
[1688419140334,161.22,19.081,19.068,55.0]
[1688419140335,22.169,19.081,19.068,55.0]
[1688419140630,22.169,19.081,19.071,183.462]
[1688419143323,22.169,19.081,19.071,182.962]
[1688419149933,22.169,19.081,19.071,78.778]
[1688419154029,22.169,19.081,19.071,89.61519922]
[1688419157851,161.17,19.087,19.071,89.61519922]
[1688419158032,75.0,19.086,19.071,89.61519922]
[1688419158227,183.376,19.081,19.065,20.0]
[1688419158450,183.376,19.081,19.061,1.35]
[1688419158451,183.376,19.081,19.066,20.0]
[1688419158742,84.92896383,19.086,19.066,22.185]
[1688419158743,183.43,19.076,19.066,22.185]
[1688419158948,79.275,19.073,19.066,22.185]
[1688419159332,79.275,19.073,19.065,22.187]
[1688419159643,55.0,19.072,19.063,22.188]
[1688419159951,79.288,19.07,19.063,22.188]
[1688419160846,22.182,19.07,19.063,22.188]
[1688419161043,22.181,19.071,19.063,22.188]
[1688419161439,22.179,19.073,19.063,126.421]
[1688419161650,22.179,19.072,19.063,126.421]
[1688419161947,22.178,19.073,19.063,126.421]
[1688419162447,104.134,19.082,19.064,20.0]
[1688419162639,22.171,19.079,19.069,183.487]
[1688419164049,92.6791,19.084,19.069,183.487]
[1688419164545,22.17,19.079,19.069,183.487]
[1688419165340,22.171,19.079,19.069,183.487]
[1688419182768,22.17,19.08,19.069,183.487]
[1688419183564,22.174,19.076,19.069,183.487]
[1688419184156,22.174,19.077,19.069,183.487]
[1688419184568,22.173,19.078,19.069,183.487]
[1688419185079,22.174,19.076,19.069,183.487]
[1688419185253,77.174,19.077,19.069,183.487]
[1688419185660,77.174,19.077,19.069,79.289]
[1688419185860,22.174,19.077,19.069,79.289]
[1688419187472,22.173,19.078,19.069,79.289]
[1688419190663,126.324,19.078,19.064,20.0]
[1688419190971,22.176,19.075,19.069,22.182]
[1688419191771,22.175,19.076,19.069,22.182]
[1688419192074,55.0,19.075,19.069,22.182]
[1688419192466,77.175,19.075,19.069,22.182]
[1688419192881,77.175,19.075,19.068,22.183]
[1688419193376,22.175,19.075,19.068,22.183]
[1688419194063,22.179,19.072,19.067,22.184]
[1688419194457,55.0,19.074,19.067,22.184]
[1688419195168,22.179,19.073,19.067,22.184]
[1688419200667,57.085,19.079,19.067,183.509]
[1688419200866,549.9,19.101,19.072,79.275]
[1688419201072,22.166,19.084,19.072,79.277]
[1688419201267,22.154,19.094,19.083,183.351]
[1688419201466,22.156,19.092,19.083,79.229]
[1688419201686,22.156,19.092,19.083,22.165]
[1688419202384,183.314,19.088,19.076,22.173]
[1688419202779,20.0,19.087,19.075,22.174]
[1688419202979,79.23,19.084,19.073,22.176]
[1688419203280,79.23,19.084,19.073,22.177]
[1688419203478,55.0,19.083,19.073,22.177]
[1688419203778,22.169,19.08,19.071,22.179]
[1688419203965,79.265,19.076,19.062,57.127]
[1688419204170,496.832,19.076,19.055,26.48868575]
[1688419204387,484.5805,19.075,19.057,22.196]
[1688419204685,183.473,19.071,19.058,22.195]
[1688419204991,75.0,19.07,19.058,22.195]
[1688419205189,193.40362311,19.071,19.055,26.48868575]
[1688419205190,183.506,19.068,19.055,26.48868575]
[1688419205392,55.0,19.067,19.057,22.195]
[1688419205571,183.523,19.066,19.057,22.195]
[1688419206594,183.523,19.066,19.058,22.194]
[1688419206890,183.523,19.066,19.057,22.195]
[1688419207282,183.523,19.066,19.058,22.195]
[1688419208193,183.523,19.066,19.059,22.193]
[1688419208579,183.523,19.066,19.058,22.194]
[1688419208791,79.306,19.066,19.055,57.148]
[1688419208999,79.306,19.066,19.06,22.192]
[1688419209878,79.306,19.066,19.056,57.144]
[1688419210198,79.306,19.066,19.059,22.193]
[1688419210576,79.306,19.066,19.056,22.196]
[1688419212277,79.306,19.066,19.057,22.196]
[1688419213998,55.0,19.065,19.054,26.75595633]
[1688419214178,55.0,19.065,19.056,22.196]
[1688419214179,79.311,19.064,19.056,22.196]
[1688419214494,79.311,19.064,19.054,26.75595633]
[1688419214675,79.311,19.064,19.056,22.197]
[1688419215592,79.311,19.064,19.055,22.197]
[1688419215793,79.311,19.064,19.056,22.197]
[1688419217000,79.311,19.064,19.057,22.196]
[1688419218783,79.311,19.064,19.056,22.196]
[1688419219686,79.311,19.064,19.055,22.197]
[1688419220894,79.311,19.064,19.056,22.197]
[1688419221508,79.311,19.064,19.055,22.197]
[1688419221688,79.311,19.064,19.056,22.197]
[1688419222006,79.311,19.064,19.055,22.197]
[1688419222205,79.311,19.064,19.056,22.197]
[1688419223009,79.311,19.064,19.054,26.75595633]
[1688419223186,79.311,19.064,19.055,22.198]
[1688419223382,183.574,19.061,19.054,26.75595633]
[1688419223589,79.326,19.061,19.052,22.201]
[1688419223788,22.192,19.061,19.053,22.2]
[1688419223993,22.192,19.061,19.05,57.165]
[1688419224200,22.192,19.061,19.047,172.32419922]
[1688419224498,126.436,19.061,19.051,22.203]
[1688419224683,126.436,19.061,19.05,22.204]
[1688419224884,126.436,19.061,19.049,22.204]
[1688419225502,126.436,19.061,19.049,33.04119922]
[1688419225703,126.436,19.061,19.05,10.83719922]
[1688419225998,126.436,19.061,19.053,22.201]
[1688419226203,22.192,19.061,19.053,22.201]
[1688419231011,22.192,19.061,19.053,79.357]
[1688419231216,22.192,19.061,19.053,22.201]
[1688419234517,22.192,19.061,19.053,48.01200056]
[1688419234819,22.192,19.061,19.053,22.201]
[1688419235906,20.0,19.06,19.04,22.215]
[1688419236104,183.635,19.054,19.036,30.0]
[1688419236305,183.635,19.054,19.037,22.218]
[1688419236505,55.0,19.053,19.037,22.218]
[1688419236704,183.69,19.049,19.037,22.218]
[1688419237219,183.69,19.049,19.037,22.219]
[1688419237519,183.69,19.049,19.036,22.22]
[1688419237520,79.393,19.045,19.036,22.22]
[1688419237921,22.211,19.045,19.036,22.22]
[1688419238109,22.211,19.045,19.036,79.427]
[1688419238307,22.211,19.045,19.036,22.22]
[1688419238821,22.211,19.045,19.036,90.26419922]
[1688419240214,79.391,19.045,19.036,22.22]
[1688419240422,22.211,19.045,19.036,79.427]
[1688419241017,22.21,19.046,19.036,79.427]
[1688419242415,22.209,19.047,19.036,79.427]
[1688419242611,57.166,19.05,19.036,79.427]
[1688419242920,55.0,19.049,19.036,79.427]
[1688419243118,22.208,19.047,19.036,79.427]
[1688419243319,22.212,19.043,19.036,79.427]
[1688419243506,22.212,19.044,19.036,79.427]
[1688419243708,181.554,19.043,19.03,79.451]
[1688419243917,181.554,19.043,19.03,22.226]
[1688419244122,181.554,19.043,19.03,21.726]
[1688419245524,181.028514,19.043,19.03,21.726]
[1688419249129,276.646714,19.043,19.03,21.726]
[1688419250021,222.1722,19.043,19.03,21.726]
[1688419250530,22.212,19.043,19.03,32.56319922]
[1688419250730,57.178,19.046,19.031,10.83719922]
[1688419250918,22.209,19.046,19.035,183.812]
[1688419252235,55.0,19.045,19.035,183.812]
[1688419252434,22.209,19.046,19.035,183.812]
[1688419253539,55.0,19.045,19.035,183.812]
[1688419253829,22.21,19.045,19.035,183.812]
[1688419257845,57.166,19.049,19.035,183.812]
[1688419258018,55.0,19.048,19.035,183.812]
[1688419258345,22.208,19.047,19.035,183.812]
[1688419261649,22.208,19.047,19.035,22.221]
[1688419261825,55.0,19.046,19.035,22.221]
[1688419262126,22.213,19.043,19.035,22.221]
[1688419262341,79.399,19.043,19.035,22.221]
[1688419270344,22.213,19.043,19.035,22.221]
[1688419270932,22.212,19.044,19.035,126.607]
[1688419272349,57.166,19.049,19.035,126.607]
[1688419272850,22.212,19.044,19.035,126.607]
[1688419273345,313.4,19.074,19.036,173.0970163]
[1688419273646,114.4399,19.063,19.049,183.677]
[1688419274032,484.9669,19.063,19.049,33.04119922]
[1688419274229,484.9669,19.063,19.036,30.0]
[1688419274437,183.664,19.051,19.037,104.37]
[1688419274634,183.664,19.051,19.041,22.214]
[1688419274830,22.207,19.048,19.041,22.214]
[1688419275034,79.378,19.048,19.041,22.214]
[1688419275232,22.21,19.046,19.041,22.214]
[1688419276049,55.0,19.045,19.041,22.214]
[1688419276350,57.171,19.048,19.041,22.214]
[1688419276543,149.4149,19.05,19.041,22.214]
[1688419276751,55.0,19.049,19.041,22.214]
[1688419277255,55.0,19.049,19.028,104.42]
[1688419277256,161.494,19.047,19.028,104.42]
[1688419277641,79.408,19.041,19.032,22.224]
[1688419278040,55.0,19.04,19.032,22.224]
[1688419278241,22.219,19.038,19.031,22.225]
[1688419279433,126.589,19.038,19.027,22.23]
[1688419279638,55.0,19.037,19.026,22.231]
[1688419279840,79.437,19.034,19.026,22.231]
[1688419281240,22.223,19.034,19.026,22.231]
[1688419284760,22.223,19.035,19.026,22.231]
[1688419285554,22.223,19.035,19.026,126.667]
[1688419293753,22.222,19.036,19.026,126.667]
[1688419294066,22.219,19.037,19.026,126.667]
[1688419294369,22.219,19.038,19.026,126.667]
[1688419295771,22.219,19.038,19.026,22.231]
[1688419295973,55.0,19.037,19.026,22.231]
[1688419296269,22.222,19.036,19.026,22.231]
[1688419296451,55.0,19.035,19.026,22.231]
[1688419298265,77.222,19.035,19.026,4.47478384]
[1688419298467,77.222,19.035,19.024,104.443]
[1688419298764,55.0,19.035,19.026,22.231]
[1688419299270,77.222,19.035,19.026,22.231]
[1688419307373,134.432,19.035,19.026,22.231]
[1688419307573,77.222,19.035,19.026,22.231]
[1688419310673,22.222,19.035,19.026,126.667]
[1688419313368,55.0,19.034,19.026,126.667]
[1688419313570,22.224,19.033,19.026,126.667]
[1688419314280,77.224,19.034,19.026,126.667]
[1688419314775,313.4,19.058,19.026,126.667]
[1688419315074,22.214,19.042,19.027,20.0]
[1688419315289,22.213,19.043,19.031,183.851]
[1688419315578,92.2148,19.045,19.035,79.43]
[1688419315783,22.212,19.044,19.007,131.36749305]
[1688419315976,22.212,19.044,19.035,22.222]
[1688419315977,79.395,19.044,19.035,22.222]
[1688419316287,79.395,19.044,19.035,79.432]
[1688419316288,22.212,19.044,19.035,79.432]
[1688419316573,12.10778,19.043,19.01,393.2]
[1688419316775,497.214,19.036,19.02,79.493]
[1688419316989,55.0,19.035,19.02,79.493]
[1688419317273,22.227,19.031,19.02,79.493]
[1688419317476,22.231,19.027,19.02,79.493]
[1688419317863,22.231,19.027,19.02,22.239]
[1688419318072,22.23,19.028,19.02,79.494]
[1688419318881,55.0,19.03,19.02,183.962]
[1688419319781,77.228,19.03,19.02,183.962]
[1688419320092,22.226,19.032,19.02,183.962]
[1688419320481,57.208,19.036,19.02,183.962]
[1688419320882,22.226,19.032,19.02,183.962]
[1688419321596,55.0,19.031,19.02,183.962]
[1688419321773,22.228,19.03,19.02,183.962]
[1688419322270,79.453,19.03,19.02,79.494]
[1688419322466,57.205,19.037,19.02,79.494]
[1688419322671,22.22,19.037,19.02,79.494]
[1688419322881,22.22,19.037,19.021,20.0]
[1688419323070,125.84233544,19.042,19.025,183.907]
[1688419323071,22.218,19.039,19.025,183.907]
[1688419323277,22.217,19.04,19.025,183.907]
[1688419323486,22.214,19.042,19.025,183.907]
[1688419324088,104.305,19.05,19.025,183.907]
[1688419324286,22.21,19.046,19.025,183.907]
[1688419324585,22.21,19.046,19.032,183.847]
[1688419324789,22.215,19.042,19.032,183.847]
[1688419325589,55.0,19.041,19.032,183.847]
[1688419325980,77.216,19.041,19.032,183.847]
[1688419327184,77.216,19.041,19.032,79.444]
[1688419335095,22.216,19.041,19.032,79.444]
[1688419338302,55.0,19.04,19.032,79.444]
[1688419340100,77.217,19.04,19.032,79.444]
[1688419342428,134.412,19.04,19.032,22.225]
[1688419342591,183.771,19.04,19.031,22.226]
[1688419342797,22.217,19.04,19.022,98.9923]
[1688419342984,22.217,19.04,19.032,79.444]
[1688419343687,22.217,19.04,19.032,22.225]
[1688419344096,55.0,19.039,19.032,22.225]
[1688419344301,22.22,19.037,19.032,22.225]
[1688419344493,368.4,19.036,19.024,22.234]
[1688419344688,368.4,19.036,18.999,393.2]
[1688419344689,183.843,19.033,18.999,393.2]
[1688419344893,3.35921555,19.017,19.007,104.538]
[1688419345182,3.35921555,19.017,19.009,22.252]
[1688419346201,3.35921555,19.017,18.994,3.0]
[1688419346202,184.012,19.015,19.002,22.26]
[1688419346515,22.255,19.007,19.001,22.261]
[1688419346680,22.255,19.007,18.997,22.266]
[1688419347303,22.255,19.007,18.986,57.356]
[1688419347506,79.578,19.0,18.989,22.275]
[1688419347804,22.263,19.0,18.989,22.275]
[1688419347995,104.552,19.005,18.989,22.275]
[1688419347996,313.4,19.012,18.989,22.275]
[1688419348300,22.264,19.0,18.989,22.275]
[1688419351091,55.0,18.999,18.989,22.275]
[1688419351291,22.267,18.996,18.989,22.275]
[1688419351503,22.267,18.996,18.974,3.0]
[1688419351804,22.267,18.996,18.987,79.632]
[1688419352022,22.267,18.997,18.987,79.632]
[1688419352301,26.70018117,19.007,18.987,79.632]
[1688419352707,22.267,18.997,18.987,79.632]
[1688419353086,161.849,19.006,18.987,79.632]
[1688419353286,22.263,19.001,18.987,79.632]
[1688419353503,57.303,19.005,18.987,79.632]
[1688419353702,104.52,19.011,18.994,79.601]
[1688419353908,57.276,19.014,19.001,22.261]
[1688419354118,104.501,19.015,19.001,22.261]
[1688419354306,22.252,19.009,19.001,22.261]
[1688419356105,122.00708116,19.019,19.001,79.573]
[1688419356310,22.253,19.009,19.001,79.573]
[1688419356809,22.252,19.009,19.001,79.573]
[1688419357310,22.252,19.009,19.001,22.261]
[1688419357612,79.54,19.009,19.001,22.261]
[1688419358521,22.252,19.009,19.001,22.261]
[1688419358721,104.494,19.016,19.001,126.834]
[1688419359018,22.252,19.009,19.001,22.261]
[1688419359998,22.249,19.012,19.001,126.834]
[1688419360193,313.4,19.026,19.001,126.834]
[1688419360516,97.5036,19.023,19.002,20.0]
[1688419360719,57.269,19.016,19.008,22.253]
[1688419361012,79.513,19.016,19.003,104.561]
[1688419361200,79.513,19.016,19.004,20.0]
[1688419361905,22.244,19.016,19.009,22.252]
[1688419365116,22.243,19.017,19.009,22.252]
[1688419365413,57.249,19.022,19.009,22.252]
[1688419365616,22.24,19.02,19.009,22.252]
[1688419373613,9.93062311,19.025,19.009,22.252]
[1688419373916,22.24,19.02,19.009,22.252]
[1688419375924,126.708,19.02,19.009,22.252]
[1688419377118,22.24,19.02,19.009,22.252]
[1688419378228,22.24,19.02,19.009,126.781]
[1688419383433,22.24,19.02,19.009,22.252]
[1688419384132,57.247,19.023,19.009,22.252]
[1688419384320,22.24,19.02,19.009,22.252]
[1688419386136,55.0,19.019,19.009,22.252]
[1688419386431,22.244,19.016,19.009,22.252]
[1688419386615,22.245,19.016,19.009,22.252]
[1688419388830,55.0,19.019,19.009,22.252]
[1688419389212,77.241,19.019,19.009,126.781]
[1688419389418,22.238,19.021,19.009,126.781]
[1688419389718,22.236,19.023,19.009,126.781]
[1688419390223,114.36062311,19.027,19.009,126.781]
[1688419390224,9.93062311,19.027,19.009,126.781]
[1688419390420,22.235,19.025,19.009,126.781]
[1688419391930,24.1209,19.026,19.01,20.0]
[1688419392113,22.23,19.029,19.01,20.0]
[1688419392114,22.23,19.029,19.014,184.013]
[1688419392315,22.23,19.029,19.015,20.0]
[1688419392519,22.23,19.029,19.019,183.97]
[1688419393233,22.226,19.032,19.019,183.97]
[1688419395838,57.189,19.042,19.02,30.83719922]
[1688419396034,22.217,19.039,19.027,183.892]
[1688419398922,55.0,19.038,19.027,79.464]
[1688419399438,22.218,19.038,19.027,79.464]
[1688419399629,22.218,19.039,19.027,79.464]
[1688419402243,92.088,19.045,19.027,79.464]
[1688419402545,22.216,19.041,19.027,79.464]
[1688419404831,55.0,19.04,19.027,79.464]
[1688419405139,22.22,19.037,19.027,79.464]
[1688419405538,57.166,19.05,19.028,20.0]
[1688419405841,313.4,19.062,19.028,20.0]
[1688419405842,22.21,19.046,19.034,183.821]
[1688419406147,183.713,19.046,19.034,22.222]
[1688419406439,79.387,19.046,19.035,20.0]
[1688419406644,126.536,19.046,19.035,22.221]
[1688419406945,22.21,19.046,19.035,22.221]
[1688419407243,58.0,19.045,19.024,22.234]
[1688419407551,340.482,19.039,19.014,57.273]
[1688419407729,473.1,19.036,19.004,30.0]
[1688419408047,183.901,19.027,19.012,22.248]
[1688419408337,79.487,19.022,19.012,22.248]
[1688419408528,79.25231003,19.035,19.012,22.248]
[1688419408732,312.0,19.049,19.012,126.76]
[1688419408733,55.0,19.034,19.012,126.76]
[1688419408941,22.229,19.03,19.02,79.493]
[1688419409144,55.0,19.029,19.02,79.493]
[1688419409730,55.0,19.03,19.02,79.493]
[1688419409924,22.226,19.032,19.02,79.493]
[1688419410132,55.0,19.031,19.02,79.493]
[1688419410436,183.867,19.03,19.02,22.239]
[1688419410635,55.0,19.029,19.02,22.239]
[1688419410833,77.23,19.029,19.02,22.239]
[1688419411040,22.228,19.03,19.02,22.239]
[1688419412140,77.23,19.029,19.02,22.239]
[1688419412531,55.0,19.029,19.02,22.239]
[1688419412736,22.227,19.031,19.02,22.239]
[1688419412930,92.2295,19.034,19.02,22.239]
[1688419413129,55.0,19.03,19.02,22.239]
[1688419413534,55.0,19.031,19.02,22.239]
[1688419414345,77.227,19.031,19.02,22.239]
[1688419415144,55.0,19.031,19.02,22.239]
[1688419416240,77.227,19.031,19.02,22.239]
[1688419416444,55.0,19.031,19.02,22.239]
[1688419418233,55.0,19.032,19.02,22.239]
[1688419421441,77.226,19.032,19.02,22.239]
[1688419421961,55.0,19.032,19.02,22.239]
[1688419423164,77.225,19.032,19.02,22.239]
[1688419423459,55.0,19.032,19.02,22.239]
[1688419423657,55.0,19.033,19.02,22.239]
[1688419423862,77.225,19.033,19.02,22.239]
[1688419425353,87.15562311,19.033,19.02,22.239]
[1688419425549,9.93062311,19.032,19.02,22.239]
[1688419425748,22.229,19.029,19.02,22.239]
[1688419426151,55.0,19.028,19.02,22.239]
[1688419426458,22.232,19.027,19.02,22.239]
[1688419427463,77.231,19.028,19.02,22.239]
[1688419427847,92.2295,19.034,19.021,20.0]
[1688419428152,104.348,19.042,19.021,20.0]
[1688419428153,22.221,19.036,19.024,183.916]
[1688419428346,22.222,19.036,19.025,20.0]
[1688419428547,22.222,19.036,19.028,79.46]
[1688419429259,3.0,19.035,18.993,172.95733332]
[1688419429465,22.234,19.025,19.012,79.528]
[1688419430166,22.234,19.025,19.012,22.249]
[1688419430548,55.0,19.024,19.012,22.249]
[1688419430859,22.239,19.021,19.012,22.249]
[1688419431071,55.0,19.02,19.012,22.249]
[1688419431250,77.24,19.02,19.012,22.249]
[1688419432156,22.24,19.02,19.012,22.249]
[1688419435852,22.239,19.021,19.012,126.761]
[1688419439956,22.239,19.021,19.012,22.249]
[1688419442261,22.239,19.021,19.003,104.558]
[1688419442468,55.0,19.02,19.008,22.253]
[1688419442662,79.509,19.017,19.008,22.253]
[1688419452174,55.0,19.016,19.008,22.253]
[1688419452388,22.247,19.014,19.008,22.253]
[1688419456579,22.247,19.014,19.004,20.0]
[1688419456779,22.247,19.014,19.002,57.308]
[1688419456780,104.452,19.024,19.008,184.078]
[1688419457079,22.238,19.022,19.014,79.519]
[1688419457264,22.238,19.022,19.017,22.243]
[1688419457881,22.237,19.023,19.017,22.243]
[1688419458380,55.0,19.022,19.017,22.243]
[1688419459379,20.0,19.021,18.994,0.8766603]
[1688419459559,22.248,19.013,19.002,79.068]
[1688419459876,22.248,19.013,19.002,22.26]
[1688419460176,161.781,19.014,18.997,104.593]
[1688419460177,79.54,19.009,19.001,22.26]
[1688419460381,22.256,19.006,19.001,22.26]
[1688419460561,55.0,19.005,18.994,0.8766603]
[1688419460765,77.258,19.005,18.994,0.8766603]
[1688419461085,286.343,19.005,18.994,0.8766603]
[1688419462173,286.343,19.005,18.994,23.1466603]
[1688419462781,77.258,19.005,18.994,23.1466603]
[1688419462986,134.597,19.005,18.994,23.1466603]
[1688419464787,230.7185,19.005,18.994,23.1466603]
[1688419466370,173.3795,19.005,18.994,23.1466603]
[1688419467382,77.258,19.005,18.995,20.0]
[1688419467568,77.258,19.005,18.998,79.586]
[1688419470082,55.0,19.005,18.998,79.586]
[1688419470389,77.257,19.005,18.998,79.586]
[1688419471486,22.257,19.005,18.998,79.586]
[1688419471693,77.258,19.009,18.998,79.586]
[1688419471694,22.256,19.007,18.998,184.175]
[1688419471873,55.0,19.006,18.998,184.175]
[1688419472186,77.256,19.006,18.998,184.175]
[1688419472389,55.0,19.006,18.998,184.175]
[1688419472889,22.254,19.008,18.998,184.175]
[1688419473089,55.0,19.007,18.998,184.175]
[1688419473490,22.253,19.009,18.998,184.175]
[1688419473788,55.0,19.008,18.998,184.175]
[1688419473995,22.253,19.008,18.998,184.175]
[1688419475490,55.0,19.007,18.998,184.175]
[1688419475681,77.255,19.007,18.998,184.175]
[1688419476296,55.0,19.007,18.998,184.175]
[1688419476475,77.255,19.007,18.998,184.175]
[1688419477502,77.255,19.007,18.998,79.586]
[1688419478794,55.0,19.007,18.998,79.586]
[1688419480089,77.255,19.007,18.998,79.586]
[1688419481678,77.255,19.007,18.998,184.175]
[1688419481679,55.0,19.007,18.998,184.175]
[1688419482277,81.02798085,19.011,18.998,183.175]
[1688419482484,103.27798085,19.011,18.998,183.175]
[1688419483280,81.02798085,19.011,18.998,183.175]
[1688419483495,55.0,19.01,18.998,183.175]
[1688419483792,22.252,19.009,18.998,183.175]
[1688419485278,193.99962311,19.009,18.998,21.265]
[1688419485479,75.0,19.008,18.998,21.265]
[1688419485681,22.257,19.005,18.998,21.265]
[1688419485988,55.0,19.004,18.998,21.265]
[1688419486190,77.259,19.004,18.998,21.265]
[1688419486392,22.258,19.005,18.998,21.265]
[1688419486793,22.256,19.006,18.998,21.265]
[1688419487503,55.0,19.005,18.998,21.265]
[1688419487681,77.258,19.005,18.998,21.265]
[1688419492082,22.258,19.005,18.998,21.265]
[1688419492496,22.256,19.006,18.998,21.265]
[1688419492688,22.258,19.005,18.998,21.265]
[1688419493389,22.257,19.006,18.998,21.265]
[1688419493887,81.02798085,19.011,18.994,0.8766603]
[1688419494084,22.256,19.007,18.998,126.854]
[1688419495490,55.0,19.006,18.998,126.854]
[1688419495799,77.257,19.006,18.998,126.854]
[1688419495998,57.287,19.01,18.998,126.854]
[1688419496192,55.0,19.009,18.998,126.854]
[1688419496397,22.256,19.007,18.998,125.854]
[1688419497202,77.256,19.006,18.998,125.854]
[1688419497405,22.256,19.006,18.998,125.854]
[1688419498596,55.0,19.009,18.998,125.854]
[1688419498802,22.255,19.007,18.998,125.854]
[1688419499002,55.0,19.006,18.998,125.854]
[1688419499591,22.257,19.005,18.998,21.265]
[1688419499784,55.0,19.004,18.998,21.265]
[1688419499988,57.288,19.009,18.998,21.265]
[1688419500288,55.0,19.008,18.998,21.265]
[1688419501184,22.256,19.007,18.998,21.265]
[1688419501401,148.24260396,19.011,18.998,21.265]
[1688419502392,22.253,19.009,18.998,21.265]